bitfinex/quotes_BTCUSD_20250602
["timestamp","ask_amount","ask_price","bid_price","bid_amount"]
[1748890402900,0.5166539,104340.0,104330.0,0.28943789]
[1748890403102,0.50769824,104340.0,104330.0,0.28943789]
[1748890403513,0.52623754,104340.0,104330.0,0.28943789]
[1748890403722,0.51728192,104340.0,104330.0,0.28943789]
[1748890403935,0.51728143,104340.0,104330.0,0.28943789]
[1748890404147,0.52623712,104340.0,104330.0,0.28943789]
[1748890404565,0.50644185,104340.0,104330.0,0.28943789]
[1748890404769,0.50706985,104340.0,104330.0,0.28943789]
[1748890405819,0.51602536,104340.0,104330.0,0.28943789]
[1748890406208,0.50706985,104340.0,104330.0,0.28943789]
[1748890406628,0.51665353,104340.0,104330.0,0.28943789]
[1748890406970,0.50706985,104340.0,104330.0,0.28943789]
[1748890407154,0.51602531,104340.0,104330.0,0.28943789]
[1748890407300,0.50706985,104340.0,104330.0,0.28943789]
[1748890407705,0.51602527,104340.0,104330.0,0.28943789]
[1748890407908,0.50706985,104340.0,104330.0,0.28943789]
[1748890408106,0.51602532,104340.0,104330.0,0.28943789]
[1748890408473,0.50706985,104340.0,104330.0,0.28943789]
[1748890409050,0.5160253,104340.0,104330.0,0.28943789]
[1748890409258,0.51602529,104340.0,104330.0,0.28943789]
[1748890409427,0.51665344,104340.0,104330.0,0.28943789]
[1748890409636,0.52560891,104340.0,104330.0,0.28943789]
[1748890409852,0.51665344,104340.0,104330.0,0.28943789]
[1748890410038,0.52623712,104340.0,104330.0,0.28943789]
[1748890410635,0.5351922,104340.0,104330.0,0.28943789]
[1748890410839,0.52560783,104340.0,104330.0,0.58795789]
[1748890411066,0.52623721,104340.0,104330.0,0.58795789]
[1748890411537,0.52624945,104340.0,104330.0,0.58795789]
[1748890413716,0.5441573,104340.0,104330.0,0.58795789]
[1748890413928,0.53520339,104340.0,104330.0,0.58795789]
[1748890414537,0.5441573,104340.0,104330.0,0.58795789]
[1748890414773,0.5537412,104340.0,104330.0,0.58795789]
[1748890415150,0.51540648,104340.0,104330.0,0.58795789]
[1748890415375,0.51603612,104340.0,104330.0,0.58795789]
[1748890415586,0.5160493,104340.0,104330.0,0.58795789]
[1748890415803,0.52563298,104340.0,104330.0,0.58795789]
[1748890416578,0.53458804,104340.0,104330.0,0.58795789]
[1748890416766,0.52563298,104340.0,104330.0,0.58795789]
[1748890416967,0.53458976,104340.0,104330.0,0.58795789]
[1748890417203,0.52563298,104340.0,104330.0,0.58795789]
[1748890417405,0.53459004,104340.0,104330.0,0.58795789]
[1748890417634,0.52563298,104340.0,104330.0,0.58795789]
[1748890418168,0.62710128,104340.0,104330.0,0.58795789]
[1748890419079,0.63668514,104340.0,104330.0,0.58795789]
[1748890419287,0.56088306,104340.0,104330.0,0.58795789]
[1748890419495,0.6181676,104340.0,104330.0,0.58795789]
[1748890419699,0.62712469,104340.0,104330.0,0.58795789]
[1748890419874,0.6181676,104340.0,104330.0,0.58795789]
[1748890420515,0.52565638,104340.0,104330.0,0.58795789]
[1748890420720,0.53461347,104340.0,104330.0,0.58795789]
[1748890420904,0.52565638,104340.0,104330.0,0.58795789]
[1748890421827,0.53461349,104340.0,104330.0,0.58795789]
[1748890422056,0.53524015,104340.0,104330.0,0.58795789]
[1748890422746,0.54419714,104340.0,104330.0,0.58795789]
[1748890423213,0.4779555,104340.0,104330.0,0.58795789]
[1748890423430,0.54419333,104340.0,104330.0,0.58795789]
[1748890423873,0.5429388,104340.0,104330.0,0.58795789]
[1748890424102,0.55252255,104340.0,104330.0,0.58795789]
[1748890424330,0.54356611,104340.0,104330.0,0.58795789]
[1748890425615,0.55252251,104340.0,104330.0,0.58795789]
[1748890426022,0.54356602,104340.0,104330.0,0.58795789]
[1748890427162,0.54357058,104340.0,104330.0,0.58787789]
[1748890427872,0.10936543,104340.0,104330.0,0.58787789]
[1748890428657,0.12853325,104340.0,104330.0,0.27985357]
[1748890428892,0.38474806,104340.0,104330.0,0.51126906]
[1748890429095,0.38474806,104340.0,104330.0,0.53043835]
[1748890431074,0.38474806,104340.0,104330.0,0.54002286]
[1748890431306,0.38474806,104340.0,104330.0,0.21286906]
[1748890431525,0.37516447,104340.0,104330.0,0.51126906]
[1748890431741,0.37516447,104340.0,104330.0,0.52085375]
[1748890432379,0.37516447,104340.0,104330.0,0.53043835]
[1748890433020,0.70558079,104340.0,104330.0,0.52085375]
[1748890435618,0.79185132,104340.0,104330.0,0.002]
[1748890435837,6.31024655,104340.0,104330.0,0.002]
[1748890436045,6.2764041,104340.0,104330.0,0.002]
[1748890436258,6.31022368,104340.0,104330.0,0.002]
[1748890436931,6.31020399,104340.0,104330.0,0.002]
[1748890437536,6.24402432,104340.0,104330.0,0.002]
[1748890437987,6.27638367,104340.0,104330.0,0.002]
[1748890438622,6.31020362,104340.0,104330.0,0.002]
[1748890438832,6.24402432,104340.0,104330.0,0.002]
[1748890441428,6.27281532,104340.0,104330.0,0.002]
[1748890442078,6.27281532,104340.0,104330.0,0.00036]
[1748890443767,0.23501519,104320.0,104310.0,0.30008062]
[1748890444012,0.34045537,104320.0,104310.0,0.30966696]
[1748890444641,0.34045537,104320.0,104310.0,0.30966641]
[1748890444846,0.00958506,104320.0,104310.0,0.22410628]
[1748890445056,0.59920025,104330.0,104320.0,0.21088928]
[1748890445273,0.43979861,104330.0,104320.0,0.21088928]
[1748890445486,0.34,104330.0,104320.0,0.66208382]
[1748890445920,0.1143884,104340.0,104330.0,0.2771532]
[1748890446126,0.42061485,104340.0,104330.0,0.2771532]
[1748890446754,0.43019816,104340.0,104330.0,0.2771532]
[1748890446965,0.43419816,104340.0,104330.0,0.2781532]
[1748890447169,0.42461485,104340.0,104330.0,0.2781532]
[1748890447374,0.43819807,104340.0,104330.0,0.2791532]
[1748890447796,0.44778147,104340.0,104330.0,0.2791532]
[1748890449700,0.43819807,104340.0,104330.0,0.2791532]
[1748890450104,0.44778138,104340.0,104330.0,0.2791532]
[1748890451055,0.45736497,104340.0,104330.0,0.2791532]
[1748890451261,0.44778138,104340.0,104330.0,0.2791532]
[1748890452922,0.45736478,104340.0,104330.0,0.2791532]
[1748890454870,0.46694837,104340.0,104330.0,0.2791532]
[1748890455077,0.45736478,104340.0,104330.0,0.2791532]
[1748890457137,0.45736515,104340.0,104330.0,0.2791532]
[1748890458238,0.64904619,104340.0,104330.0,0.26956888]
[1748890458440,0.65863015,104340.0,104330.0,0.27915329]
[1748890458827,0.6682142,104340.0,104330.0,0.27915329]
[1748890459435,0.46694911,104340.0,104330.0,0.28873761]
[1748890459644,0.65863015,104340.0,104330.0,0.28873761]
[1748890460630,0.6682142,104340.0,104330.0,0.27915329]
[1748890460890,0.47653316,104340.0,104330.0,0.27915329]
[1748890461111,0.6682142,104340.0,104330.0,0.28873761]
[1748890463106,0.46694911,104340.0,104330.0,0.28873761]
[1748890463342,0.65863015,104340.0,104330.0,0.28873761]
[1748890463805,0.7415588,104340.0,104330.0,0.25998428]
[1748890464029,0.7415588,104340.0,104330.0,0.26956897]
[1748890464274,0.7415588,104340.0,104330.0,0.27915357]
[1748890465629,0.7415588,104340.0,104330.0,0.28873808]
[1748890465835,0.64904758,104340.0,104330.0,0.28873808]
[1748890466454,0.44778249,104340.0,104330.0,0.28873808]
[1748890466662,0.44778249,104340.0,104330.0,0.2983224]
[1748890468349,0.42861485,104340.0,104330.0,0.2983224]
[1748890468524,0.45736497,104340.0,104330.0,0.2983224]
[1748890468759,0.43819807,104340.0,104330.0,0.2983224]
[1748890469115,0.08861485,104340.0,104330.0,0.2983224]
[1748890473281,0.09819807,104340.0,104330.0,0.2983224]
[1748890473889,0.08861485,104340.0,104330.0,0.2983224]
[1748890476300,0.09819816,104340.0,104330.0,0.2983224]
[1748890476587,0.09819807,104340.0,104330.0,0.30506005]
[1748890476729,0.09819807,104340.0,104330.0,0.30505416]
[1748890476936,0.09819807,104340.0,104330.0,0.30505412]
[1748890477142,0.09819807,104340.0,104330.0,0.2983224]
[1748890478530,0.08861485,104340.0,104330.0,0.2983224]
[1748890479329,0.08861485,104340.0,104330.0,0.30505414]
[1748890479486,0.08861485,104340.0,104330.0,0.2983224]
[1748890480177,0.08861485,104340.0,104330.0,0.30505414]
[1748890480382,0.08861485,104340.0,104330.0,0.2983224]
[1748890483324,0.09819807,104340.0,104330.0,0.2983224]
[1748890484941,0.08861485,104340.0,104330.0,0.2983224]
[1748890489071,0.09819807,104340.0,104330.0,0.2983224]
[1748890489272,0.08861485,104340.0,104330.0,0.2983224]
[1748890490401,0.09819807,104340.0,104330.0,0.2983224]
[1748890491209,0.08861485,104340.0,104330.0,0.2983224]
[1748890493626,0.07965074,104340.0,104330.0,0.2983224]
[1748890494943,0.07965074,104340.0,104330.0,0.305054]
[1748890495621,0.07965074,104340.0,104330.0,0.2983224]
[1748890497036,0.07965074,104340.0,104330.0,0.30505346]
[1748890497656,0.07965074,104340.0,104330.0,0.2983224]
[1748890499401,0.07965074,104340.0,104330.0,0.30506216]
[1748890499810,0.07965074,104340.0,104330.0,0.2983224]
[1748890500626,0.07965074,104340.0,104330.0,0.30506216]
[1748890500838,0.07965074,104340.0,104330.0,0.2983224]
[1748890512287,0.09819217,104340.0,104330.0,0.2983224]
[1748890513114,0.13190047,104340.0,104330.0,0.002]
[1748890513320,0.87309348,104340.0,104330.0,0.002]
[1748890513522,0.83924252,104340.0,104330.0,0.002]
[1748890513734,0.61043821,104330.0,104310.0,0.23008022]
[1748890513963,0.61043821,104330.0,104310.0,0.22049396]
[1748890513964,0.25418622,104320.0,104310.0,0.22049396]
[1748890514171,0.24460116,104320.0,104310.0,0.22049396]
[1748890514385,0.23501583,104320.0,104310.0,0.21090762]
[1748890514582,0.27044452,104320.0,104310.0,0.20132109]
[1748890514789,0.27044452,104320.0,104310.0,0.2109078]
[1748890514993,0.29465282,104320.0,104310.0,0.23949442]
[1748890515196,0.29665282,104320.0,104310.0,0.23949442]
[1748890515398,0.29665282,104320.0,104310.0,0.22049442]
[1748890515607,0.29765282,104320.0,104310.0,0.22849442]
[1748890515810,0.29865282,104320.0,104310.0,0.23449442]
[1748890516968,0.32707444,104320.0,104310.0,0.24408095]
[1748890517632,0.66707444,104320.0,104310.0,0.014]
[1748890517854,0.76292874,104320.0,104310.0,0.014]
[1748890518066,0.8290462,104320.0,104310.0,0.014]
[1748890519369,5.8320192,104320.0,104310.0,0.014]
[1748890520071,5.8310192,104320.0,104310.0,0.008]
[1748890520287,5.8330192,104320.0,104310.0,0.008]
[1748890520500,0.02412784,104300.0,104290.0,0.21094912]
[1748890520721,0.04266927,104300.0,104290.0,0.21094912]
[1748890520933,0.05225653,104300.0,104290.0,0.21099754]
[1748890521155,0.06184407,104300.0,104290.0,0.21099754]
[1748890521379,0.03371501,104300.0,104290.0,0.23809754]
[1748890521615,0.07362997,104300.0,104290.0,0.26729754]
[1748890521824,0.08521751,104300.0,104290.0,0.26929754]
[1748890522043,0.07562997,104300.0,104290.0,0.26929754]
[1748890522257,0.08521751,104300.0,104290.0,0.26929754]
[1748890522698,0.07562997,104300.0,104290.0,0.26929754]
[1748890522885,0.08521742,104300.0,104290.0,0.26929754]
[1748890523091,0.16814119,104300.0,104290.0,0.26929754]
[1748890523507,0.17772873,104300.0,104290.0,0.26929754]
[1748890524160,0.16814119,104300.0,104290.0,0.26929754]
[1748890524372,0.17772873,104300.0,104290.0,0.24009754]
[1748890524512,0.14896666,104300.0,104290.0,0.24009754]
[1748890525146,0.15855383,104300.0,104290.0,0.24009754]
[1748890525827,0.14896666,104300.0,104290.0,0.24009754]
[1748890526068,0.13937967,104300.0,104290.0,0.24009754]
[1748890526270,0.05645544,104300.0,104290.0,0.26899754]
[1748890526887,0.02812784,104300.0,104290.0,0.26899754]
[1748890527750,0.01854085,104300.0,104290.0,0.26899754]
[1748890528362,0.02812775,104300.0,104290.0,0.26899754]
[1748890528544,0.12063897,104300.0,104290.0,0.26899754]
[1748890529336,0.02812775,104300.0,104290.0,0.26899754]
[1748890529537,0.05634626,104300.0,104290.0,0.26899754]
[1748890531380,0.05634635,104300.0,104290.0,0.26899754]
[1748890532608,0.05634626,104300.0,104290.0,0.26899754]
[1748890532924,0.06593325,104300.0,104290.0,0.26899754]
[1748890534193,0.12825475,104300.0,104290.0,0.26899754]
[1748890534474,0.04675936,104300.0,104290.0,0.26899754]
[1748890534900,0.05634626,104300.0,104290.0,0.26899754]
[1748890535551,0.06593334,104300.0,104290.0,0.26899754]
[1748890535964,0.05634626,104300.0,104290.0,0.26899754]
[1748890536188,0.06593334,104300.0,104290.0,0.26899754]
[1748890536610,0.12825327,104300.0,104290.0,0.26899754]
[1748890537450,0.04675936,104300.0,104290.0,0.26899754]
[1748890539646,0.06593361,104300.0,104290.0,0.26899754]
[1748890541408,0.05634635,104300.0,104290.0,0.26899754]
[1748890541959,0.06593352,104300.0,104290.0,0.26899754]
[1748890542471,0.05634635,104300.0,104290.0,0.26899754]
[1748890542771,0.06593352,104300.0,104290.0,0.26899754]
[1748890543742,0.03221851,104300.0,104290.0,0.26899754]
[1748890543956,0.004,104300.0,104290.0,0.29780331]
[1748890544163,0.004,104300.0,104290.0,0.86632804]
[1748890544611,0.004,104300.0,104290.0,0.36485184]
[1748890545997,0.04329704,104320.0,104310.0,0.27579548]
[1748890546826,0.07237965,104320.0,104310.0,0.27579548]
[1748890547027,0.08196535,104320.0,104310.0,0.27579548]
[1748890547253,0.0532087,104320.0,104310.0,0.27579548]
[1748890547458,0.002,104320.0,104310.0,0.35524224]
[1748890547872,0.01158506,104320.0,104310.0,0.27679548]
[1748890548079,0.01358506,104320.0,104310.0,0.27779548]
[1748890548491,0.004,104320.0,104310.0,0.27779548]
[1748890549812,0.01358506,104320.0,104310.0,0.27779548]
[1748890550071,0.004,104320.0,104310.0,0.27779548]
[1748890556138,0.004,104320.0,104310.0,0.35643824]
[1748890556350,0.004,104320.0,104310.0,1.34380874]
[1748890557235,0.01916662,104340.0,104330.0,0.2204532]
[1748890557441,0.01916662,104340.0,104330.0,0.2760532]
[1748890557933,0.00958322,104340.0,104330.0,0.2760532]
[1748890558348,0.00958322,104340.0,104330.0,0.2770532]
[1748890558558,0.01363163,104340.0,104330.0,0.2770532]
[1748890559191,0.01363172,104340.0,104330.0,0.2770532]
[1748890559395,0.01363172,104340.0,104330.0,0.2780532]
[1748890559607,0.00804841,104340.0,104330.0,0.2780532]
[1748890559852,0.01763163,104340.0,104330.0,0.2780532]
[1748890560059,0.02721503,104340.0,104330.0,0.2780532]
[1748890560480,0.22847975,104340.0,104330.0,0.2780532]
[1748890560697,0.02721503,104340.0,104330.0,0.2780532]
[1748890561245,0.03679862,104340.0,104330.0,0.2780532]
[1748890561977,0.02721503,104340.0,104330.0,0.2780532]
[1748890563061,0.02721503,104340.0,104330.0,0.32694569]
[1748890563295,0.03679853,104340.0,104330.0,0.2780532]
[1748890564191,0.02721503,104340.0,104330.0,0.2780532]
[1748890564400,0.03679862,104340.0,104330.0,0.2780532]
[1748890565766,0.00804841,104340.0,104330.0,0.2780532]
[1748890565965,0.01763163,104340.0,104330.0,0.32694569]
[1748890566431,0.00804841,104340.0,104330.0,0.32694569]
[1748890566862,0.00804841,104340.0,104330.0,0.81271999]
[1748890567267,0.00404841,104340.0,104330.0,0.81171999]
[1748890567461,0.00404841,104340.0,104330.0,0.7628275]
[1748890567700,0.00504841,104340.0,104330.0,0.7688275]
[1748890568130,0.00404841,104340.0,104330.0,0.7628275]
[1748890568343,4.841e-05,104340.0,104330.0,0.7618275]
[1748890568549,0.00104841,104340.0,104330.0,0.7708275]
[1748890569249,0.00104841,104340.0,104330.0,0.87033872]
[1748890569482,0.00204841,104340.0,104330.0,0.87033872]
[1748890570311,0.00204841,104340.0,104330.0,1.37181492]
[1748890571385,4.841e-05,104340.0,104330.0,1.35581492]
[1748890571622,4.841e-05,104340.0,104330.0,1.2633037]
[1748890571790,0.00204841,104340.0,104330.0,0.7707875]
[1748890572354,0.00304841,104340.0,104330.0,0.7837875]
[1748890573236,0.00304841,104340.0,104330.0,0.3939075]
[1748890573439,0.00304841,104340.0,104330.0,0.6879332]
[1748890584727,0.00304841,104340.0,104330.0,0.6877732]
[1748890585396,0.00304841,104340.0,104330.0,1.71496819]
[1748890589481,0.00304841,104340.0,104330.0,1.1234675]
[1748890589890,0.00304841,104340.0,104330.0,0.7339075]
[1748890590114,0.00304841,104340.0,104330.0,1.0312275]
[1748890597993,0.00304841,104340.0,104330.0,0.7339075]
[1748890598309,0.00304841,104340.0,104330.0,1.1233875]
[1748890598515,0.00304841,104340.0,104330.0,1.16787544]
[1748890599962,0.00304841,104340.0,104330.0,0.77839544]
[1748890600168,0.00304841,104340.0,104330.0,1.1233875]
[1748890602788,0.00304841,104340.0,104330.0,1.6248637]
[1748890603231,0.00304841,104340.0,104330.0,1.9524377]
[1748890611364,0.00304841,104340.0,104330.0,1.95185317]
[1748890613594,0.00304841,104340.0,104330.0,2.45274484]
[1748890613835,0.00304841,104340.0,104330.0,2.54525606]
[1748890614226,0.00304841,104340.0,104330.0,2.53225606]
[1748890614227,0.00204841,104340.0,104330.0,2.53225606]
[1748890614464,4.841e-05,104340.0,104330.0,2.53625606]
[1748890614678,0.00204841,104340.0,104330.0,2.53625606]
[1748890614892,0.002,104340.0,104330.0,2.56325606]
[1748890615112,0.002,104340.0,104330.0,2.96325606]
[1748890615329,0.002,104340.0,104330.0,2.49268424]
[1748890615536,0.002,104340.0,104330.0,2.46213675]
[1748890620380,0.002,104340.0,104330.0,1.56199272]
[1748890620589,0.002,104340.0,104330.0,1.4586815]
[1748890621289,0.002,104340.0,104330.0,1.1186815]
[1748890621568,0.002,104340.0,104330.0,1.4586815]
[1748890621815,0.002,104340.0,104330.0,1.4299075]
[1748890622062,0.002,104340.0,104330.0,1.52241872]
[1748890622933,0.002,104340.0,104330.0,2.02308275]
[1748890623146,0.002,104340.0,104330.0,1.72600275]
[1748890623334,0.002,104340.0,104330.0,2.02304275]
[1748890626270,0.002,104340.0,104330.0,1.72600275]
[1748890626513,0.002,104340.0,104330.0,2.02304275]
[1748890626757,0.002,104340.0,104330.0,2.42304275]
[1748890627003,0.002,104340.0,104330.0,1.1310675]
[1748890628505,0.002,104340.0,104330.0,0.8340275]
[1748890628755,0.002,104340.0,104330.0,1.1310675]
[1748890633650,0.002,104340.0,104330.0,0.7784275]
[1748890633899,0.002,104340.0,104330.0,1.0754675]
[1748890635285,0.1106138,104370.0,104360.0,0.20122651]
[1748890635517,0.25252207,104370.0,104360.0,0.20122651]
[1748890635773,0.20695227,104370.0,104360.0,0.22039047]
[1748890636873,0.21753338,104370.0,104360.0,0.22997222]
[1748890637545,0.14062246,104370.0,104360.0,0.23955379]
[1748890637773,0.14062246,104370.0,104360.0,0.24055379]
[1748890637992,0.01602502,104370.0,104360.0,0.24055379]
[1748890638218,0.04956688,104370.0,104360.0,0.24055379]
[1748890639675,0.03040549,104370.0,104360.0,0.24055379]
[1748890639898,0.04956688,104370.0,104360.0,0.24055379]
[1748890640607,0.0591479,104370.0,104360.0,0.24055379]
[1748890640808,0.04956688,104370.0,104360.0,0.24055379]
[1748890641005,0.0591479,104370.0,104360.0,0.24055379]
[1748890641667,0.04956688,104370.0,104360.0,0.24055379]
[1748890643376,0.04956688,104370.0,104360.0,0.27008536]
[1748890643377,0.00148417,104370.0,104360.0,0.27008536]
[1748890643589,0.00148417,104370.0,104360.0,0.29628536]
[1748890643804,0.00148417,104370.0,104360.0,0.32338536]
[1748890644000,0.00148417,104370.0,104360.0,0.37081757]
[1748890657775,0.01106464,104370.0,104360.0,0.29385379]
[1748890658205,0.25915513,104370.0,104360.0,0.21180863]
[1748890658414,0.23999401,104370.0,104360.0,0.22139056]
[1748890658641,0.23999401,104370.0,104360.0,0.23097231]
[1748890658843,0.30623944,104370.0,104360.0,0.23097231]
[1748890659893,0.30623944,104370.0,104360.0,0.24055397]
[1748890660066,0.10503221,104370.0,104360.0,0.24055333]
[1748890660307,0.05945942,104370.0,104360.0,0.33702734]
[1748890660507,0.04476725,104370.0,104360.0,0.33702734]
[1748890660719,0.10143135,104370.0,104360.0,0.30902734]
[1748890660899,0.11101228,104370.0,104360.0,0.30902734]
[1748890661102,0.11101228,104370.0,104360.0,0.26805333]
[1748890661548,0.11101931,104370.0,104360.0,0.26805333]
[1748890661729,0.07731679,104370.0,104360.0,0.26805333]
[1748890661933,0.02064538,104370.0,104360.0,0.29605333]
[1748890662154,0.02064529,104370.0,104360.0,0.29605333]
[1748890662308,0.03022612,104370.0,104360.0,0.29605333]
[1748890662502,0.05450247,104370.0,104360.0,0.29605333]
[1748890662729,0.0640833,104370.0,104360.0,0.29605333]
[1748890663001,0.09648184,104370.0,104360.0,0.29605333]
[1748890663795,0.08690101,104370.0,104360.0,0.29605333]
[1748890664211,0.03022603,104370.0,104360.0,0.29605333]
[1748890664415,0.0640903,104370.0,104360.0,0.29605333]
[1748890664625,0.06409039,104370.0,104360.0,0.29605333]
[1748890665489,0.09649206,104370.0,104360.0,0.29605333]
[1748890665741,0.10607299,104370.0,104360.0,0.24055333]
[1748890666893,0.09649206,104370.0,104360.0,0.24055333]
[1748890667115,0.10607299,104370.0,104360.0,0.24055333]
[1748890668267,0.10609226,104370.0,104360.0,0.24055333]
[1748890669307,0.11567328,104370.0,104360.0,0.24055333]
[1748890669880,0.10609226,104370.0,104360.0,0.26715333]
[1748890671104,0.11567337,104370.0,104360.0,0.26715333]
[1748890671308,0.10609226,104370.0,104360.0,0.26715333]
[1748890672033,0.07368108,104370.0,104360.0,0.26715333]
[1748890672244,0.10609056,104370.0,104360.0,0.26715333]
[1748890672471,0.09650963,104370.0,104360.0,0.29435333]
[1748890672610,0.10609056,104370.0,104360.0,0.29435333]
[1748890672807,0.11567167,104370.0,104360.0,0.29435333]
[1748890673017,0.10609056,104370.0,104360.0,0.29435333]
[1748890673483,0.11567167,104370.0,104360.0,0.29435333]
[1748890675425,0.10609056,104370.0,104360.0,0.29435333]
[1748890676043,0.11564894,104370.0,104360.0,0.29435333]
[1748890676250,0.11564958,104370.0,104360.0,0.29435333]
[1748890676402,0.10606847,104370.0,104360.0,0.29435333]
[1748890676609,0.29769441,104370.0,104360.0,0.29435333]
[1748890676832,0.10606847,104370.0,104360.0,0.29435333]
[1748890677036,0.11564958,104370.0,104360.0,0.29435333]
[1748890677374,0.10606847,104370.0,104360.0,0.29435333]
[1748890677734,0.11564958,104370.0,104360.0,0.29435333]
[1748890679356,0.3217993,104370.0,104360.0,0.28477176]
[1748890680078,0.32179936,104370.0,104360.0,0.28477176]
[1748890680299,0.12059213,104370.0,104360.0,0.29435333]
[1748890681876,0.12059489,104370.0,104360.0,0.29435333]
[1748890682382,0.32180212,104370.0,104360.0,0.29435333]
[1748890683065,0.12059489,104370.0,104360.0,0.29435333]
[1748890683301,0.11101378,104370.0,104360.0,0.29435333]
[1748890683533,0.12059489,104370.0,104360.0,0.29435333]
[1748890683770,0.12058649,104370.0,104360.0,0.29435333]
[1748890685034,0.11100538,104370.0,104360.0,0.29435333]
[1748890685222,0.12058649,104370.0,104360.0,0.29435333]
[1748890686536,0.32179363,104370.0,104360.0,0.29435333]
[1748890686753,0.32179418,104370.0,104360.0,0.29435333]
[1748890686971,0.31221325,104370.0,104360.0,0.28477176]
[1748890687418,0.31221325,104370.0,104360.0,0.29435333]
[1748890688740,0.31221325,104370.0,104360.0,0.28477176]
[1748890690450,0.31221325,104370.0,104360.0,0.2751901]
[1748890690667,0.31221325,104370.0,104360.0,0.2726901]
[1748890690875,0.30263223,104370.0,104360.0,0.26310835]
[1748890691300,0.30263223,104370.0,104360.0,0.27269019]
[1748890691515,0.30263507,104370.0,104360.0,0.27269019]
[1748890691916,0.29305396,104370.0,104360.0,0.25352651]
[1748890692954,0.29305396,104370.0,104360.0,0.26310863]
[1748890693590,0.34680553,104370.0,104360.0,0.26310863]
[1748890693763,0.33722433,104370.0,104360.0,0.26310863]
[1748890694562,0.28347276,104370.0,104360.0,0.27269066]
[1748890695290,0.21723225,104370.0,104360.0,0.27269066]
[1748890695497,0.28348221,104370.0,104360.0,0.27269066]
[1748890695924,0.28348221,104370.0,104360.0,0.28227259]
[1748890696131,0.28348325,104370.0,104360.0,0.28227259]
[1748890696522,0.33627775,104370.0,104360.0,0.28227259]
[1748890696737,0.33627775,104370.0,104360.0,0.27269066]
[1748890696967,0.33627775,104370.0,104360.0,0.26310863]
[1748890697201,0.28348325,104370.0,104360.0,0.27269047]
[1748890697577,0.28348325,104370.0,104360.0,0.2439443]
[1748890697801,0.28348325,104370.0,104360.0,0.26310863]
[1748890698415,0.28348325,104370.0,104360.0,0.27269066]
[1748890699689,0.28348325,104370.0,104360.0,0.2822725]
[1748890700394,0.34547375,104370.0,104360.0,0.2822725]
[1748890701749,0.34547375,104370.0,104360.0,0.27269066]
[1748890702448,0.31161716,104370.0,104360.0,0.27269066]
[1748890702655,0.24962666,104370.0,104360.0,0.26310863]
[1748890703143,0.3359335,104370.0,104360.0,0.001]
[1748890703363,0.3359335,104370.0,104360.0,0.0263]
[1748890703983,0.40757497,104370.0,104360.0,0.0263]
[1748890704831,0.3359335,104370.0,104360.0,0.0263]
[1748890705047,0.3359335,104370.0,104360.0,0.0518]
[1748890705465,0.3359335,104370.0,104360.0,0.2434443]
[1748890705466,0.3334935,104370.0,104360.0,0.2434443]
[1748890705673,0.3334935,104370.0,104360.0,0.0518]
[1748890706232,0.3334935,104370.0,104360.0,0.2434443]
[1748890706441,0.3334935,104370.0,104360.0,0.0518]
[1748890706866,0.33349469,104370.0,104360.0,0.0518]
[1748890707305,0.33349469,104370.0,104360.0,0.25302651]
[1748890707711,0.3334936,104370.0,104360.0,0.25302651]
[1748890708369,0.3334936,104370.0,104360.0,0.06138221]
[1748890708575,0.3334936,104370.0,104360.0,0.0518]
[1748890709253,0.3334936,104370.0,104360.0,0.25302651]
[1748890710660,0.42600482,104370.0,104360.0,0.25302651]
[1748890710915,0.42602318,104370.0,104360.0,0.0518]
[1748890711326,0.42602318,104370.0,104360.0,0.25302651]
[1748890711742,0.42602318,104370.0,104360.0,0.0518]
[1748890712365,0.34309307,104370.0,104360.0,0.25302633]
[1748890712578,0.34309307,104370.0,104360.0,0.26260826]
[1748890712797,0.24723877,104370.0,104360.0,0.26260826]
[1748890712997,0.24723877,104370.0,104360.0,0.2721901]
[1748890714411,0.24723877,104370.0,104360.0,0.26260826]
[1748890714616,0.24724624,104370.0,104360.0,0.26260826]
[1748890716600,0.24724624,104370.0,104360.0,0.2721901]
[1748890717447,0.21479207,104370.0,104360.0,0.2721901]
[1748890718503,0.24724281,104370.0,104360.0,0.2721901]
[1748890720596,0.24724281,104370.0,104360.0,0.28177185]
[1748890722568,0.24724459,104370.0,104360.0,0.28177185]
[1748890724226,0.24724459,104370.0,104360.0,0.26260826]
[1748890724435,0.2675778,104370.0,104360.0,0.26260826]
[1748890724646,0.2675778,104370.0,104360.0,0.2721901]
[1748890724853,0.2675778,104370.0,104360.0,0.28177185]
[1748890726283,0.28211865,104370.0,104360.0,0.28177185]
[1748890726467,0.28212098,104370.0,104360.0,0.28177185]
[1748890726670,0.28212098,104370.0,104360.0,0.25302633]
[1748890727766,0.28212098,104370.0,104360.0,0.25302642]
[1748890727984,0.37797528,104370.0,104360.0,0.0518]
[1748890728412,0.4704865,104370.0,104360.0,0.2434443]
[1748890728819,0.4704865,104370.0,104360.0,0.25302651]
[1748890729223,0.37797528,104370.0,104360.0,0.25302651]
[1748890730249,0.37797916,104370.0,104360.0,0.25302651]
[1748890730551,0.37797916,104370.0,104360.0,0.26260863]
[1748890731011,0.37797916,104370.0,104360.0,0.27219066]
[1748890733690,0.37797916,104370.0,104360.0,0.28177259]
[1748890734301,0.08532009,104370.0,104360.0,0.29135379]
[1748890734735,0.10966079,104370.0,104360.0,0.29135379]
[1748890734960,0.06637771,104370.0,104360.0,0.30118381]
[1748890735145,0.10002859,104380.0,104370.0,0.22036872]
[1748890735363,0.10016392,104380.0,104370.0,0.27236872]
[1748890735582,0.11872135,104380.0,104370.0,0.27236872]
[1748890735816,0.1187214,104380.0,104370.0,0.27236872]
[1748890736028,0.33505265,104380.0,104370.0,0.27236881]
[1748890736232,0.34463302,104380.0,104370.0,0.27236881]
[1748890736443,0.35361051,104380.0,104370.0,0.27236881]
[1748890736661,0.54099854,104380.0,104370.0,0.052]
[1748890736862,0.47833708,104380.0,104370.0,0.052]
[1748890737099,0.47832981,104380.0,104370.0,0.052]
[1748890737755,0.47832981,104380.0,104370.0,0.25320723]
[1748890737961,0.47832858,104380.0,104370.0,0.25320723]
[1748890739631,0.47831948,104380.0,104370.0,0.25320723]
[1748890739872,0.06464488,104380.0,104370.0,0.57835001]
[1748890740074,0.00813913,104380.0,104370.0,0.57835001]
[1748890741481,0.00013913,104380.0,104370.0,0.57835001]
[1748890741703,0.00113913,104380.0,104370.0,0.57835001]
[1748890741929,0.00113913,104380.0,104370.0,0.67086123]
[1748890742135,0.00013913,104380.0,104370.0,0.67086123]
[1748890742344,0.00013913,104380.0,104370.0,0.67186123]
[1748890750083,0.00013913,104380.0,104370.0,0.76771553]
[1748890750508,0.00013913,104380.0,104370.0,1.26842885]
[1748890750722,0.00013913,104380.0,104370.0,0.76771553]
[1748890754745,0.00013913,104380.0,104370.0,0.47131553]
[1748890754941,0.00013913,104380.0,104370.0,0.76676431]
[1748890757379,0.00013913,104380.0,104370.0,0.47052431]
[1748890757800,0.00013913,104380.0,104370.0,0.67087001]
[1748890758007,0.00013913,104380.0,104370.0,0.28295001]
[1748890758216,0.00013913,104380.0,104370.0,0.57915001]